[Event "Early-Titled-Tuesday-Blitz-September-05-2023"]
[Site "Chess.com"]
[Date "2023.09.05"]
[Round "3"]
[White "Athanasios2"]
[Black "HansOnTwitch"]
[Result "0-1"]
[WhiteElo "2680"]
[BlackElo "3057"]
[TimeControl "180+1"]
[EndTime "8:26:15 PDT"]
[Termination "HansOnTwitch won by resignation"]

1. e4 {[%clk 0:03:00.9]} 1... c5 {[%clk 0:02:56.2]} 2. Nc3 {[%clk 0:03:01.2]}
2... Nc6 {[%clk 0:02:55.1]} 3. Nf3 {[%clk 0:03:01.6]} 3... g6 {[%clk 0:02:52.2]}
4. d4 {[%clk 0:03:01.4]} 4... cxd4 {[%clk 0:02:52.4]} 5. Nxd4 {[%clk 0:03:02.3]}
5... Bg7 {[%clk 0:02:52.4]} 6. Nde2 {[%clk 0:03:03]} 6... Nf6 {[%clk 0:02:51.2]}
7. g3 {[%clk 0:03:03.5]} 7... h5 {[%clk 0:02:50.8]} 8. h3 {[%clk 0:02:59.5]}
8... d6 {[%clk 0:02:49.9]} 9. Bg2 {[%clk 0:02:59.7]} 9... O-O {[%clk 0:02:50]}
10. Be3 {[%clk 0:02:58]} 10... Bd7 {[%clk 0:02:49]} 11. O-O {[%clk 0:02:58]}
11... Rc8 {[%clk 0:02:49.6]} 12. Nd5 {[%clk 0:02:46.6]} 12... Ne5 {[%clk
0:02:43.4]} 13. b3 {[%clk 0:02:38.5]} 13... Bc6 {[%clk 0:02:17.4]} 14. c4 {[%clk
0:02:31.9]} 14... b6 {[%clk 0:02:17.4]} 15. Rc1 {[%clk 0:02:30.8]} 15... Bb7
{[%clk 0:02:02.1]} 16. Qd2 {[%clk 0:02:13.9]} 16... Nfd7 {[%clk 0:01:54.7]} 17.
Bd4 {[%clk 0:01:52.6]} 17... e6 {[%clk 0:01:52.3]} 18. Ne3 {[%clk 0:01:51.4]}
18... Nc5 {[%clk 0:01:52.4]} 19. Nc3 {[%clk 0:01:47.9]} 19... f5 {[%clk
0:01:42.4]} 20. Bxe5 {[%clk 0:01:37.1]} 20... dxe5 {[%clk 0:01:40.5]} 21. Qxd8
{[%clk 0:01:30.9]} 21... Rcxd8 {[%clk 0:01:39.9]} 22. exf5 {[%clk 0:01:31.1]}
22... Bxg2 {[%clk 0:01:39]} 23. Kxg2 {[%clk 0:01:31.3]} 23... gxf5 {[%clk
0:01:39.7]} 24. Rcd1 {[%clk 0:01:01.8]} 24... e4 {[%clk 0:01:35.6]} 25. Nb5
{[%clk 0:01:01.7]} 25... a6 {[%clk 0:01:35.2]} 26. Na3 {[%clk 0:00:49.4]} 26...
Nd3 {[%clk 0:01:34.9]} 27. f3 {[%clk 0:00:42.7]} 27... f4 {[%clk 0:01:27.3]} 28.
gxf4 {[%clk 0:00:28.7]} 28... Nxf4+ {[%clk 0:01:28.2]} 29. Kh1 {[%clk
0:00:25.1]} 29... Rxd1 {[%clk 0:01:25.1]} 30. Nxd1 {[%clk 0:00:21.7]} 30... Nxh3
{[%clk 0:01:25.7]} 31. Kg2 {[%clk 0:00:16.8]} 31... Nf4+ {[%clk 0:01:26.4]} 32.
Kg3 {[%clk 0:00:16.5]} 32... Ne2+ {[%clk 0:01:20.4]} 33. Kh4 {[%clk 0:00:14.5]}
33... exf3 {[%clk 0:01:17.7]} 34. Kxh5 {[%clk 0:00:13.9]} 34... Ng3+ {[%clk
0:01:17.5]} 0-1

[Event "Early-Titled-Tuesday-Blitz-September-05-2023"]
[Site "Chess.com"]
[Date "2023.09.05"]
[Round "3"]
[White "inagreV"]
[Black "nss13"]
[Result "0-1"]
[WhiteElo "2245"]
[BlackElo "2484"]
[TimeControl "180+1"]
[EndTime "8:26:15 PDT"]
[Termination "nss13 won by resignation"]

1. e4 {[%clk 0:02:56.8]} 1... c5 {[%clk 0:02:59.9]} 2. Nf3 {[%clk 0:02:56.6]}
2... e6 {[%clk 0:03:00.4]} 3. d4 {[%clk 0:02:56.4]} 3... cxd4 {[%clk 0:03:01.3]}
4. Nxd4 {[%clk 0:02:57.1]} 4... Nc6 {[%clk 0:03:01.8]} 5. Bf4 {[%clk 0:02:55.2]}
5... a6 {[%clk 0:02:54.4]} 6. Nxc6 {[%clk 0:02:54.5]} 6... bxc6 {[%clk
0:02:54.3]} 7. Bd3 {[%clk 0:02:53.1]} 7... d5 {[%clk 0:02:53.3]} 8. O-O {[%clk
0:02:52.3]} 8... Nf6 {[%clk 0:02:53.6]} 9. Nd2 {[%clk 0:02:51.6]} 9... Be7
{[%clk 0:02:53.3]} 10. Re1 {[%clk 0:02:47]} 10... O-O {[%clk 0:02:53]} 11. e5
{[%clk 0:02:40.1]} 11... Nd7 {[%clk 0:02:52.7]} 12. c4 {[%clk 0:02:40.8]} 12...
a5 {[%clk 0:02:51.8]} 13. Qc2 {[%clk 0:02:37.4]} 13... g6 {[%clk 0:02:51.1]} 14.
Rad1 {[%clk 0:02:31.6]} 14... Ba6 {[%clk 0:02:50.3]} 15. Bh6 {[%clk 0:02:30.4]}
15... Re8 {[%clk 0:02:50.2]} 16. Nf3 {[%clk 0:02:29]} 16... Nb6 {[%clk
0:02:41.9]} 17. c5 {[%clk 0:02:13]} 17... Bxd3 {[%clk 0:02:41.3]} 18. Rxd3
{[%clk 0:02:13.9]} 18... Nd7 {[%clk 0:02:39.9]} 19. Rc3 {[%clk 0:02:14.1]} 19...
a4 {[%clk 0:02:39]} 20. Nd4 {[%clk 0:02:13]} 20... Qc7 {[%clk 0:02:21.8]} 21. f4
{[%clk 0:02:06.3]} 21... Ra5 {[%clk 0:02:21.5]} 22. b4 {[%clk 0:02:00.4]} 22...
axb3 {[%clk 0:02:22.4]} 23. Nxb3 {[%clk 0:01:59.4]} 23... Ra4 {[%clk 0:02:19.1]}
24. f5 {[%clk 0:01:46.9]} 24... exf5 {[%clk 0:02:15.1]} 25. e6 {[%clk 0:01:37]}
25... fxe6 {[%clk 0:02:15.3]} 26. Rxe6 {[%clk 0:01:35.2]} 26... Re4 {[%clk
0:01:31.3]} 27. Re3 {[%clk 0:01:31.2]} 27... Kf7 {[%clk 0:01:23.1]} 28. R6xe4
{[%clk 0:01:25.5]} 28... fxe4 {[%clk 0:01:23.3]} 29. Rh3 {[%clk 0:01:17.7]}
29... Bf6 {[%clk 0:01:14.7]} 30. Qf2 {[%clk 0:01:14]} 30... Kg8 {[%clk 0:01:07]}
31. Bf4 {[%clk 0:01:03.8]} 31... Be5 {[%clk 0:01:06]} 32. Bxe5 {[%clk
0:00:55.2]} 32... Qxe5 {[%clk 0:01:06.9]} 33. Rxh7 {[%clk 0:00:55.2]} 33... Kxh7
{[%clk 0:00:48.7]} 34. Qf7+ {[%clk 0:00:54.9]} 34... Kh6 {[%clk 0:00:47.9]} 35.
Qxd7 {[%clk 0:00:54.2]} 35... e3 {[%clk 0:00:46.6]} 0-1

[Event "Early-Titled-Tuesday-Blitz-September-05-2023"]
[Site "Chess.com"]
[Date "2023.09.05"]
[Round "3"]
[White "Larina_Maria"]
[Black "tk22h"]
[Result "1-0"]
[WhiteElo "2210"]
[BlackElo "2407"]
[TimeControl "180+1"]
[EndTime "8:26:23 PDT"]
[Termination "Larina_Maria won by resignation"]

1. e4 {[%clk 0:03:00.9]} 1... e5 {[%clk 0:02:58.3]} 2. Nf3 {[%clk 0:02:59.5]}
2... Nc6 {[%clk 0:02:58.4]} 3. Nc3 {[%clk 0:02:57.4]} 3... Nf6 {[%clk
0:02:57.9]} 4. Bb5 {[%clk 0:02:56.9]} 4... Nd4 {[%clk 0:02:56.6]} 5. Nxd4 {[%clk
0:02:56.2]} 5... exd4 {[%clk 0:02:56.9]} 6. e5 {[%clk 0:02:57.1]} 6... dxc3
{[%clk 0:02:56.8]} 7. exf6 {[%clk 0:02:57.7]} 7... Qxf6 {[%clk 0:02:55.3]} 8.
dxc3 {[%clk 0:02:57.3]} 8... Qe5+ {[%clk 0:02:55.5]} 9. Qe2 {[%clk 0:02:56.9]}
9... Qxe2+ {[%clk 0:02:55.4]} 10. Bxe2 {[%clk 0:02:55.2]} 10... d5 {[%clk
0:02:53.3]} 11. c4 {[%clk 0:02:54.4]} 11... Be6 {[%clk 0:02:52.9]} 12. cxd5
{[%clk 0:02:53.7]} 12... Bxd5 {[%clk 0:02:53.1]} 13. O-O {[%clk 0:02:54.4]}
13... Bd6 {[%clk 0:02:50.7]} 14. Re1 {[%clk 0:02:53.5]} 14... O-O {[%clk
0:02:49.6]} 15. Bd3 {[%clk 0:02:39.4]} 15... Rfe8 {[%clk 0:02:48.6]} 16. Bd2
{[%clk 0:02:38.9]} 16... Be5 {[%clk 0:02:43.5]} 17. c3 {[%clk 0:02:29.3]} 17...
Rad8 {[%clk 0:02:43.5]} 18. Bf1 {[%clk 0:02:03.7]} 18... Bf6 {[%clk 0:02:42.6]}
19. Bf4 {[%clk 0:01:59.2]} 19... c6 {[%clk 0:02:42.6]} 20. a3 {[%clk 0:01:56.8]}
20... g6 {[%clk 0:02:40.4]} 21. h3 {[%clk 0:01:55.6]} 21... h5 {[%clk
0:02:39.9]} 22. Be3 {[%clk 0:01:41.5]} 22... b6 {[%clk 0:02:38.2]} 23. a4 {[%clk
0:01:37]} 23... c5 {[%clk 0:02:26.8]} 24. a5 {[%clk 0:01:33.9]} 24... Ra8 {[%clk
0:02:17.6]} 25. axb6 {[%clk 0:01:33.3]} 25... axb6 {[%clk 0:02:17.4]} 26. Bb5
{[%clk 0:01:27]} 26... Red8 {[%clk 0:02:16.4]} 27. Bf4 {[%clk 0:01:21.7]} 27...
Be6 {[%clk 0:02:13.4]} 28. Bc6 {[%clk 0:01:14.2]} 28... Rxa1 {[%clk 0:02:12.9]}
29. Rxa1 {[%clk 0:01:15.1]} 29... Rc8 {[%clk 0:02:11.5]} 30. Bb5 {[%clk
0:01:11.8]} 30... Bd8 {[%clk 0:02:07.7]} 31. Ra7 {[%clk 0:01:08.5]} 31... Bf6
{[%clk 0:01:55.1]} 32. Rb7 {[%clk 0:01:03.7]} 32... g5 {[%clk 0:01:52.6]} 33.
Bc7 {[%clk 0:01:00.7]} 33... Bd5 {[%clk 0:01:49.1]} 34. Ra7 {[%clk 0:00:57.5]}
34... Bd8 {[%clk 0:01:33.7]} 35. Be5 {[%clk 0:00:49]} 35... Ra8 {[%clk
0:01:25.5]} 36. Rd7 {[%clk 0:00:39.7]} 36... Be6 {[%clk 0:01:25.5]} 37. Rd1
{[%clk 0:00:32.6]} 37... Kf8 {[%clk 0:01:14.9]} 38. Bc6 {[%clk 0:00:31.5]} 38...
Rc8 {[%clk 0:01:12.3]} 39. Bb7 {[%clk 0:00:31.1]} 39... Bc7 {[%clk 0:01:10.2]}
40. Bxc8 {[%clk 0:00:29.8]} 40... Bxe5 {[%clk 0:01:10.2]} 41. Bxe6 {[%clk
0:00:29.8]} 41... fxe6 {[%clk 0:01:10.2]} 42. Re1 {[%clk 0:00:28.9]} 1-0

[Event "Early-Titled-Tuesday-Blitz-September-05-2023"]
[Site "Chess.com"]
[Date "2023.09.05"]
[Round "3"]
[White "Jakuboss22005"]
[Black "WiktoriaPOL"]
[Result "1-0"]
[WhiteElo "2501"]
[BlackElo "2276"]
[TimeControl "180+1"]
[EndTime "8:26:26 PDT"]
[Termination "Jakuboss22005 won on time"]

1. h4 {[%clk 0:03:00.9]} 1... e5 {[%clk 0:02:55.5]} 2. c4 {[%clk 0:03:00.5]}
2... Nf6 {[%clk 0:02:49.5]} 3. Nc3 {[%clk 0:02:59.5]} 3... d5 {[%clk 0:02:43.2]}
4. cxd5 {[%clk 0:02:59.6]} 4... Nxd5 {[%clk 0:02:44.1]} 5. Nf3 {[%clk
0:02:55.2]} 5... f6 {[%clk 0:02:33.5]} 6. d4 {[%clk 0:02:50.3]} 6... Nxc3 {[%clk
0:02:26.1]} 7. bxc3 {[%clk 0:02:49.9]} 7... e4 {[%clk 0:02:26.3]} 8. Nd2 {[%clk
0:02:45.3]} 8... e3 {[%clk 0:02:18]} 9. fxe3 {[%clk 0:02:44.8]} 9... Qd6 {[%clk
0:02:01.7]} 10. Ne4 {[%clk 0:02:30.7]} 10... Qc6 {[%clk 0:01:51.7]} 11. Qd3
{[%clk 0:02:23.3]} 11... Bf5 {[%clk 0:01:27.8]} 12. d5 {[%clk 0:02:18.3]} 12...
Qa4 {[%clk 0:01:21.3]} 13. Nxf6+ {[%clk 0:02:08.7]} 13... gxf6 {[%clk
0:01:15.6]} 14. Qxf5 {[%clk 0:02:08.6]} 14... Nd7 {[%clk 0:01:09.4]} 15. Qh5+
{[%clk 0:01:52]} 15... Kd8 {[%clk 0:00:58.3]} 16. Bd2 {[%clk 0:01:44.5]} 16...
Ne5 {[%clk 0:00:52]} 17. Qf5 {[%clk 0:01:30.7]} 17... Be7 {[%clk 0:00:43.6]} 18.
g3 {[%clk 0:01:30.8]} 18... Nc4 {[%clk 0:00:25.4]} 19. Bh3 {[%clk 0:01:27.8]}
19... Nd6 {[%clk 0:00:20.3]} 20. Qd3 {[%clk 0:01:19.2]} 20... Qa3 {[%clk
0:00:02.8]} 21. O-O {[%clk 0:01:08.8]} 21... Rg8 {[%clk 0:00:02.8]} 22. Kh2
{[%clk 0:01:08.3]} 22... Qa4 {[%clk 0:00:02.2]} 23. Qd4 {[%clk 0:01:05.4]} 23...
Nc4 {[%clk 0:00:01.4]} 24. Rxf6 {[%clk 0:00:54.4]} 1-0

[Event "Early-Titled-Tuesday-Blitz-September-05-2023"]
[Site "Chess.com"]
[Date "2023.09.05"]
[Round "3"]
[White "masterofpuppets2"]
[Black "CheckThis4"]
[Result "0-1"]
[WhiteElo "2470"]
[BlackElo "2664"]
[TimeControl "180+1"]
[EndTime "8:26:27 PDT"]
[Termination "CheckThis4 won by resignation"]

1. d4 {[%clk 0:03:00.9]} 1... Nf6 {[%clk 0:02:59.4]} 2. c4 {[%clk 0:03:01.2]}
2... e5 {[%clk 0:02:59.1]} 3. dxe5 {[%clk 0:03:01.3]} 3... Ng4 {[%clk
0:02:59.2]} 4. Bf4 {[%clk 0:03:01.7]} 4... Bb4+ {[%clk 0:02:58.9]} 5. Nd2 {[%clk
0:02:59.9]} 5... d6 {[%clk 0:02:58.5]} 6. Nf3 {[%clk 0:02:41.4]} 6... dxe5
{[%clk 0:02:51.4]} 7. Nxe5 {[%clk 0:02:41.4]} 7... Bxd2+ {[%clk 0:02:43.5]} 8.
Qxd2 {[%clk 0:02:33.8]} 8... Qxd2+ {[%clk 0:02:42.5]} 9. Kxd2 {[%clk 0:02:34.7]}
9... Nxf2 {[%clk 0:02:42.5]} 10. Rg1 {[%clk 0:02:35.1]} 10... Ne4+ {[%clk
0:02:27.8]} 11. Ke3 {[%clk 0:02:31]} 11... Nc5 {[%clk 0:02:23]} 12. Kf3 {[%clk
0:02:15.2]} 12... Nbd7 {[%clk 0:02:08.8]} 13. Nd3 {[%clk 0:01:57.7]} 13... Ne6
{[%clk 0:01:48.3]} 14. Be3 {[%clk 0:01:50.1]} 14... b6 {[%clk 0:01:44.3]} 15. g4
{[%clk 0:01:48.7]} 15... Bb7+ {[%clk 0:01:44.2]} 16. Kf2 {[%clk 0:01:49.2]}
16... Nf6 {[%clk 0:01:42.4]} 17. g5 {[%clk 0:01:38]} 17... Ne4+ {[%clk
0:01:41.9]} 18. Ke1 {[%clk 0:01:38.6]} 18... O-O-O {[%clk 0:01:40.3]} 19. h4
{[%clk 0:01:38.4]} 19... Rhe8 {[%clk 0:01:39.5]} 20. Rd1 {[%clk 0:01:28.2]}
20... Nd4 {[%clk 0:01:32.7]} 21. Bh3+ {[%clk 0:01:00.4]} 21... Kb8 {[%clk
0:01:30.7]} 22. Bxd4 {[%clk 0:01:00]} 22... Rxd4 {[%clk 0:01:29.5]} 23. Bf5
{[%clk 0:00:43.7]} 23... g6 {[%clk 0:01:22.7]} 24. Bg4 {[%clk 0:00:38.5]} 24...
Rxc4 {[%clk 0:01:18.8]} 25. Rc1 {[%clk 0:00:38.5]} 25... Rd4 {[%clk 0:01:05.5]}
26. Bf3 {[%clk 0:00:36.3]} 26... Nc5 {[%clk 0:00:55.3]} 27. Nxc5 {[%clk
0:00:33.6]} 27... Bxf3 {[%clk 0:00:55.3]} 28. Nb3 {[%clk 0:00:25]} 28... Rxe2+
{[%clk 0:00:51.7]} 29. Kf1 {[%clk 0:00:25.3]} 29... Rf4 {[%clk 0:00:48.8]} 30.
Rc3 {[%clk 0:00:23.3]} 30... Bg4+ {[%clk 0:00:43.5]} 0-1

[Event "Early-Titled-Tuesday-Blitz-September-05-2023"]
[Site "Chess.com"]
[Date "2023.09.05"]
[Round "3"]
[White "isla88"]
[Black "benny_aizenberg"]
[Result "1-0"]
[WhiteElo "2492"]
[BlackElo "2658"]
[TimeControl "180+1"]
[EndTime "8:26:30 PDT"]
[Termination "isla88 won on time"]

1. d4 {[%clk 0:03:00.9]} 1... Nf6 {[%clk 0:02:52.3]} 2. Nf3 {[%clk 0:03:00.9]}
2... c5 {[%clk 0:02:42.1]} 3. d5 {[%clk 0:02:58.1]} 3... b5 {[%clk 0:02:30.8]}
4. c4 {[%clk 0:02:56.8]} 4... bxc4 {[%clk 0:02:27.9]} 5. Nc3 {[%clk 0:02:56.5]}
5... g6 {[%clk 0:02:13.2]} 6. e4 {[%clk 0:02:56.1]} 6... Bg7 {[%clk 0:02:05.9]}
7. e5 {[%clk 0:02:56.2]} 7... Ng4 {[%clk 0:01:54.1]} 8. d6 {[%clk 0:02:48.7]}
8... Nxe5 {[%clk 0:01:28.2]} 9. dxe7 {[%clk 0:02:15.8]} 9... Qxe7 {[%clk
0:01:13.3]} 10. Be3 {[%clk 0:02:09.6]} 10... Bb7 {[%clk 0:01:07]} 11. Nd5 {[%clk
0:02:03.8]} 11... Nxf3+ {[%clk 0:00:56.3]} 12. Qxf3 {[%clk 0:01:53.6]} 12...
Bxd5 {[%clk 0:00:42.8]} 13. Qxd5 {[%clk 0:01:54.5]} 13... Nc6 {[%clk 0:00:38.1]}
14. Bxc4 {[%clk 0:01:46.6]} 14... Bxb2 {[%clk 0:00:32.7]} 15. O-O {[%clk
0:01:43.4]} 15... Bxa1 {[%clk 0:00:16]} 16. Bxc5 {[%clk 0:01:43.3]} 16... Qe6
{[%clk 0:00:13.9]} 17. Qd3 {[%clk 0:01:43.7]} 17... Ne5 {[%clk 0:00:10.2]} 18.
Qe4 {[%clk 0:01:36]} 18... Qc6 {[%clk 0:00:04.2]} 19. Qe3 {[%clk 0:01:24.9]}
19... O-O-O {[%clk 0:00:02]} 20. Be2 {[%clk 0:01:08.1]} 20... d6 {[%clk
0:00:01.3]} 21. Bxa7 {[%clk 0:01:07]} 21... Bc3 {[%clk 0:00:01.1]} 22. Rc1
{[%clk 0:01:07.3]} 22... Kb7 {[%clk 0:00:01.5]} 23. Rxc3 {[%clk 0:01:06.4]}
23... Qd5 {[%clk 0:00:01.1]} 24. Qb6+ {[%clk 0:01:02.8]} 24... Ka8 {[%clk
0:00:01.6]} 25. Bb8 {[%clk 0:00:55.2]} 1-0

[Event "Early-Titled-Tuesday-Blitz-September-05-2023"]
[Site "Chess.com"]
[Date "2023.09.05"]
[Round "3"]
[White "Kaua18"]
[Black "Vladimir_Zakhartsov"]
[Result "0-1"]
[WhiteElo "2504"]
[BlackElo "2882"]
[TimeControl "180+1"]
[EndTime "8:26:31 PDT"]
[Termination "Vladimir_Zakhartsov won by checkmate"]

1. e4 {[%clk 0:03:00.9]} 1... c6 {[%clk 0:02:58.6]} 2. d4 {[%clk 0:02:57.2]}
2... Na6 {[%clk 0:02:58.3]} 3. Nf3 {[%clk 0:02:53.2]} 3... Nc7 {[%clk
0:02:58.3]} 4. Nc3 {[%clk 0:02:53.6]} 4... g6 {[%clk 0:02:56.8]} 5. Be3 {[%clk
0:02:52.5]} 5... Bg7 {[%clk 0:02:57.1]} 6. Qd2 {[%clk 0:02:51.3]} 6... d5 {[%clk
0:02:56.3]} 7. O-O-O {[%clk 0:02:51]} 7... b5 {[%clk 0:02:53.7]} 8. e5 {[%clk
0:02:49.8]} 8... h5 {[%clk 0:02:49.7]} 9. Kb1 {[%clk 0:02:40.3]} 9... Nh6 {[%clk
0:02:48.9]} 10. Bd3 {[%clk 0:02:39.8]} 10... a5 {[%clk 0:02:46.1]} 11. Ne2
{[%clk 0:02:34.5]} 11... Nf5 {[%clk 0:02:40.4]} 12. Ng5 {[%clk 0:02:25.8]} 12...
b4 {[%clk 0:02:35.2]} 13. Bf4 {[%clk 0:02:09.4]} 13... Ne6 {[%clk 0:02:19.8]}
14. Nxe6 {[%clk 0:02:08.3]} 14... Bxe6 {[%clk 0:02:19.6]} 15. h3 {[%clk
0:02:04.7]} 15... Qb6 {[%clk 0:02:14.6]} 16. c3 {[%clk 0:01:18.2]} 16... c5
{[%clk 0:01:49]} 17. dxc5 {[%clk 0:01:04.5]} 17... Qxc5 {[%clk 0:01:49.9]} 18.
g4 {[%clk 0:00:50.2]} 18... Nh4 {[%clk 0:01:50.1]} 19. Bg3 {[%clk 0:00:39]}
19... Nf3 {[%clk 0:01:47.2]} 20. Qe3 {[%clk 0:00:14.3]} 20... Qxe3 {[%clk
0:01:45.6]} 21. Bb5+ {[%clk 0:00:14.7]} 21... Kf8 {[%clk 0:01:44.8]} 22. fxe3
{[%clk 0:00:14.9]} 22... Bxe5 {[%clk 0:01:44.1]} 23. gxh5 {[%clk 0:00:13.4]}
23... Rxh5 {[%clk 0:01:42.6]} 24. Bxe5 {[%clk 0:00:11.1]} 24... Rxe5 {[%clk
0:01:42.2]} 25. Nf4 {[%clk 0:00:10.7]} 25... bxc3 {[%clk 0:01:40.2]} 26. bxc3
{[%clk 0:00:08.5]} 26... Rb8 {[%clk 0:01:39.6]} 27. a4 {[%clk 0:00:08.7]} 27...
Bd7 {[%clk 0:01:37.7]} 28. c4 {[%clk 0:00:06.9]} 28... Bf5+ {[%clk 0:01:32.9]}
29. Ka2 {[%clk 0:00:06.7]} 29... dxc4 {[%clk 0:01:33.3]} 30. Nd5 {[%clk
0:00:02.4]} 30... c3 {[%clk 0:01:23.2]} 31. Nxc3 {[%clk 0:00:01.9]} 31... Rxe3
{[%clk 0:01:23.5]} 32. Kb2 {[%clk 0:00:02]} 32... Ne5 {[%clk 0:01:21.6]} 33. Nd5
{[%clk 0:00:01.9]} 33... Nc4+ {[%clk 0:01:20.6]} 34. Ka2 {[%clk 0:00:01.8]}
34... Ra3# {[%clk 0:01:20.6]} 0-1

[Event "Early-Titled-Tuesday-Blitz-September-05-2023"]
[Site "Chess.com"]
[Date "2023.09.05"]
[Round "3"]
[White "Barbus89"]
[Black "wild3000"]
[Result "1-0"]
[WhiteElo "2552"]
[BlackElo "2293"]
[TimeControl "180+1"]
[EndTime "8:26:33 PDT"]
[Termination "Barbus89 won by resignation"]

1. Nf3 {[%clk 0:03:00.9]} 1... d5 {[%clk 0:01:35.2]} 2. g3 {[%clk 0:02:58.9]}
2... Nf6 {[%clk 0:01:34.8]} 3. Bg2 {[%clk 0:02:58.1]} 3... g6 {[%clk 0:01:35.4]}
4. O-O {[%clk 0:02:58]} 4... Bg7 {[%clk 0:01:35.8]} 5. d4 {[%clk 0:02:56.6]}
5... O-O {[%clk 0:01:35.9]} 6. c4 {[%clk 0:02:56.8]} 6... c6 {[%clk 0:01:36.6]}
7. cxd5 {[%clk 0:02:57.5]} 7... Nxd5 {[%clk 0:01:36.6]} 8. Nc3 {[%clk
0:02:58.4]} 8... Bg4 {[%clk 0:01:35.9]} 9. h3 {[%clk 0:02:53.6]} 9... Bxf3
{[%clk 0:01:33.8]} 10. Bxf3 {[%clk 0:02:54.5]} 10... Nxc3 {[%clk 0:01:33]} 11.
bxc3 {[%clk 0:02:55.4]} 11... Nd7 {[%clk 0:01:33.4]} 12. e4 {[%clk 0:02:53.4]}
12... e5 {[%clk 0:01:33]} 13. Be3 {[%clk 0:02:51.5]} 13... exd4 {[%clk
0:01:32.7]} 14. cxd4 {[%clk 0:02:52.4]} 14... Nb6 {[%clk 0:01:33.4]} 15. Rc1
{[%clk 0:02:45.2]} 15... Re8 {[%clk 0:01:32.4]} 16. a4 {[%clk 0:02:28.4]} 16...
Qe7 {[%clk 0:01:27.6]} 17. a5 {[%clk 0:02:25.2]} 17... Nd7 {[%clk 0:01:26.4]}
18. a6 {[%clk 0:02:15.6]} 18... Nb6 {[%clk 0:01:20.6]} 19. axb7 {[%clk
0:02:11.7]} 19... Qxb7 {[%clk 0:01:19.7]} 20. Qb3 {[%clk 0:02:09.7]} 20... Rac8
{[%clk 0:01:15]} 21. Rc2 {[%clk 0:01:55.1]} 21... h5 {[%clk 0:01:13.1]} 22. h4
{[%clk 0:01:49.8]} 22... Qd7 {[%clk 0:01:11.8]} 23. Rfc1 {[%clk 0:01:41.3]}
23... Bxd4 {[%clk 0:01:05.2]} 24. Bxd4 {[%clk 0:01:37.1]} 24... Qxd4 {[%clk
0:01:04.4]} 25. Rxc6 {[%clk 0:01:37.5]} 25... Rxc6 {[%clk 0:01:03.6]} 26. Rxc6
{[%clk 0:01:38.3]} 26... Re7 {[%clk 0:00:50.6]} 27. Rxg6+ {[%clk 0:01:36.1]}
27... Kf8 {[%clk 0:00:47.3]} 28. Rg5 {[%clk 0:01:32.9]} 28... Qa4 {[%clk
0:00:40.2]} 29. Qc3 {[%clk 0:01:26.4]} 29... Re6 {[%clk 0:00:36.6]} 30. Rxh5
{[%clk 0:01:13.8]} 30... Nc4 {[%clk 0:00:35.4]} 31. Rc5 {[%clk 0:00:49.4]} 31...
Nd6 {[%clk 0:00:30.8]} 32. Qh8+ {[%clk 0:00:42.9]} 32... Ke7 {[%clk 0:00:30.7]}
33. Rc7+ {[%clk 0:00:42.9]} 1-0

[Event "Early-Titled-Tuesday-Blitz-September-05-2023"]
[Site "Chess.com"]
[Date "2023.09.05"]
[Round "3"]
[White "infinitegiantkiller"]
[Black "m_ezat"]
[Result "0-1"]
[WhiteElo "2486"]
[BlackElo "2719"]
[TimeControl "180+1"]
[EndTime "8:26:34 PDT"]
[Termination "m_ezat won by checkmate"]

1. Nf3 {[%clk 0:03:00.5]} 1... Nf6 {[%clk 0:02:59.4]} 2. g3 {[%clk 0:03:01.4]}
2... g6 {[%clk 0:02:56.2]} 3. Bg2 {[%clk 0:03:02.3]} 3... Bg7 {[%clk 0:02:56.4]}
4. O-O {[%clk 0:03:03.2]} 4... O-O {[%clk 0:02:56.4]} 5. b3 {[%clk 0:03:03]}
5... d6 {[%clk 0:02:56.5]} 6. Bb2 {[%clk 0:03:03.2]} 6... e5 {[%clk 0:02:57.1]}
7. d3 {[%clk 0:03:03.6]} 7... Re8 {[%clk 0:02:56.7]} 8. Nbd2 {[%clk 0:03:04.2]}
8... Nc6 {[%clk 0:02:55.8]} 9. c4 {[%clk 0:03:04.2]} 9... Bg4 {[%clk 0:02:53.5]}
10. h3 {[%clk 0:03:02.3]} 10... Bf5 {[%clk 0:02:53.6]} 11. a3 {[%clk 0:02:58.4]}
11... a5 {[%clk 0:02:52.7]} 12. Rc1 {[%clk 0:02:57.6]} 12... h6 {[%clk
0:02:51.3]} 13. Ne1 {[%clk 0:02:55.7]} 13... Qc8 {[%clk 0:02:09.7]} 14. Kh2
{[%clk 0:02:55.1]} 14... h5 {[%clk 0:02:09.1]} 15. Nc2 {[%clk 0:02:51.4]} 15...
Nh7 {[%clk 0:02:03.8]} 16. Ne3 {[%clk 0:02:46.5]} 16... Be6 {[%clk 0:02:00]} 17.
Nd5 {[%clk 0:02:45.9]} 17... Ng5 {[%clk 0:01:54.5]} 18. h4 {[%clk 0:02:46.3]}
18... Nh7 {[%clk 0:01:54.2]} 19. e4 {[%clk 0:02:45.9]} 19... Nf6 {[%clk
0:01:53.8]} 20. f3 {[%clk 0:02:45.4]} 20... Nd7 {[%clk 0:01:52.6]} 21. Nb1
{[%clk 0:02:44.7]} 21... Nc5 {[%clk 0:01:50.5]} 22. Nbc3 {[%clk 0:02:44.7]}
22... Nd4 {[%clk 0:01:50.3]} 23. b4 {[%clk 0:02:42.4]} 23... axb4 {[%clk
0:01:49.1]} 24. axb4 {[%clk 0:02:43.3]} 24... Na6 {[%clk 0:01:47.9]} 25. b5
{[%clk 0:02:43.1]} 25... Nc5 {[%clk 0:01:47.9]} 26. Ne2 {[%clk 0:02:43.5]} 26...
Nxe2 {[%clk 0:01:42.7]} 27. Qxe2 {[%clk 0:02:44.4]} 27... Ra2 {[%clk 0:01:42.5]}
28. Ra1 {[%clk 0:02:44.6]} 28... Rxa1 {[%clk 0:01:37.1]} 29. Rxa1 {[%clk
0:02:43.9]} 29... c6 {[%clk 0:01:36.9]} 30. Nc3 {[%clk 0:02:40.1]} 30... Nb3
{[%clk 0:01:36.4]} 31. Ra3 {[%clk 0:02:36.9]} 31... Nd4 {[%clk 0:01:36.1]} 32.
Qd1 {[%clk 0:02:37.3]} 32... Bh6 {[%clk 0:01:30.1]} 33. bxc6 {[%clk 0:02:35.4]}
33... bxc6 {[%clk 0:01:29.6]} 34. Ne2 {[%clk 0:02:34.4]} 34... Qb7 {[%clk
0:01:22.7]} 35. Bxd4 {[%clk 0:02:29.7]} 35... exd4 {[%clk 0:01:22.2]} 36. Nxd4
{[%clk 0:02:30.6]} 36... Qb2 {[%clk 0:01:19.8]} 37. Qa1 {[%clk 0:02:18.9]} 37...
Qxa1 {[%clk 0:00:51.1]} 38. Rxa1 {[%clk 0:02:19.8]} 38... Bg7 {[%clk 0:00:51]}
39. Nxe6 {[%clk 0:02:20]} 39... Bxa1 {[%clk 0:00:50.2]} 40. Nf4 {[%clk
0:02:19.4]} 40... Be5 {[%clk 0:00:48.4]} 41. Ne2 {[%clk 0:02:19.6]} 41... Rb8
{[%clk 0:00:48.1]} 42. d4 {[%clk 0:02:19.5]} 42... Bg7 {[%clk 0:00:46.2]} 43. e5
{[%clk 0:01:59]} 43... dxe5 {[%clk 0:00:44.9]} 44. dxe5 {[%clk 0:01:59.9]} 44...
Bxe5 {[%clk 0:00:35.9]} 45. f4 {[%clk 0:02:00.3]} 45... Bf6 {[%clk 0:00:35.4]}
46. Bxc6 {[%clk 0:02:00.1]} 46... Rb2 {[%clk 0:00:34.8]} 47. Bf3 {[%clk
0:01:57.6]} 47... Rc2 {[%clk 0:00:35.1]} 48. Kg2 {[%clk 0:01:49.3]} 48... Rxc4
{[%clk 0:00:35.4]} 49. Ng1 {[%clk 0:01:49.8]} 49... Rb4 {[%clk 0:00:35.4]} 50.
Bd5 {[%clk 0:01:46.7]} 50... Rb2+ {[%clk 0:00:34]} 51. Kf3 {[%clk 0:01:47.2]}
51... Bd4 {[%clk 0:00:33]} 52. Ne2 {[%clk 0:01:46.6]} 52... Bb6 {[%clk
0:00:33.5]} 53. Nc3 {[%clk 0:01:44.7]} 53... Kg7 {[%clk 0:00:31.2]} 54. Ne4
{[%clk 0:01:44.5]} 54... f5 {[%clk 0:00:29.6]} 55. Ng5 {[%clk 0:01:31.2]} 55...
Rf2# {[%clk 0:00:27.8]} 0-1